fUSD/lending_fUSD_20251206
["ID","MTS","AMOUNT","RATE_DAILY","PERIOD"]
[396491046,1765000236173,-500.0,0.00017973,2]
[396491047,1765000236182,-505.085201,0.00017973,2]
[396491048,1765000236193,-168.19239076,0.00017973,2]
[396491049,1765000236203,-281.95977781,0.00017973,2]
[396491050,1765000236212,-500.0,0.00017973,2]
[396491051,1765000236223,-528.80600363,0.00017973,2]
[396491052,1765000236232,-467.58168915,0.00017973,2]
[396491053,1765000236245,-219.77568388,0.00017973,2]
[396491054,1765000236255,-482.01811225,0.00017973,2]
[396491055,1765000236264,-159.10862324,0.00017973,2]
[396491056,1765000236273,-500.21137091,0.00017973,2]
[396491057,1765000236283,-500.0,0.00017973,2]
[396491058,1765000236292,-500.0,0.00017973,2]
[396491059,1765000236301,-508.01274209,0.00017973,2]
[396491060,1765000236311,-160.20100282,0.00017973,2]
[396491061,1765000236320,-500.0,0.00017973,2]
[396491062,1765000236335,-500.0,0.00017973,2]
[396491063,1765000236346,-306.35770823,0.00017973,2]
[396491064,1765000236356,-160.21322409,0.00017973,2]
[396491065,1765000236367,-508.31464132,0.00017973,2]
[396491066,1765000236377,-160.2084447,0.00017973,2]
[396491067,1765000236387,-160.19917494,0.00017973,2]
[396491068,1765000236396,-160.20428879,0.00017973,2]
[396491069,1765000236407,-160.72032991,0.00017973,2]
[396491070,1765000236418,-500.0,0.00017973,2]
[396491071,1765000236428,-500.0,0.00017973,2]
[396491072,1765000236437,-164.45914382,0.00017973,2]
[396491073,1765000236446,-500.12019196,0.00017973,2]
[396491074,1765000236456,-500.0,0.00017973,2]
[396491075,1765000236465,-500.0,0.00017973,2]
[396491076,1765000236474,-373.54709993,0.00017973,2]
[396491077,1765000236484,-161.25523384,0.00017973,2]
[396491078,1765000236493,-500.0,0.00017973,2]
[396491079,1765000236502,-500.0,0.00017973,2]
[396491080,1765000236511,-500.15304176,0.00017973,2]
[396491081,1765000236520,-500.0,0.00017973,2]
[396491082,1765000236529,-328.43766857,0.00017973,2]
[396491083,1765000236538,-500.0,0.00017973,2]
[396491084,1765000236547,-500.0,0.00017973,2]
[396491085,1765000236556,-500.0,0.00017973,2]
[396491086,1765000236565,-500.0,0.00017973,2]
[396491087,1765000236574,-500.0,0.00017973,2]
[396491088,1765000236583,-343.90657031,0.00017973,2]
[396491089,1765000236592,-833.85100081,0.0001799,2]
[396491090,1765000236601,-833.85100081,0.0001799,2]
[396491091,1765000236610,-500.0,0.00017997,2]
[396491092,1765000236619,-500.0,0.00017997,2]
[396491093,1765000236628,-151.0,0.00017998,2]
[396491094,1765000236638,-151.0,0.00017998,2]
[396491095,1765000236647,-153.142988,0.00017998,2]
[396491096,1765000236657,-151.0,0.00017998,2]
[396491097,1765000236666,-151.0,0.00017998,2]
[396491098,1765000236676,-151.0,0.00017998,2]
[396491099,1765000236685,-151.0,0.00017998,2]
[396491100,1765000236694,-500.0,0.00017999,2]
[396491101,1765000236704,-373.03593362,0.00017999,2]
[396491102,1765000237171,-126.96406638,0.00017999,2]
[396491103,1765000237182,-500.0,0.00017999,2]
[396491104,1765000237191,-458.64645884,0.00017999,2]
[396491105,1765000237202,-500.0,0.00017999,2]
[396491106,1765000237211,-500.0,0.00017999,2]
[396491107,1765000237220,-500.0,0.00017999,2]
[396491108,1765000237229,-500.0,0.00017999,2]
[396491109,1765000237238,-500.0,0.00017999,2]
[396491110,1765000237248,-500.0,0.00017999,2]
[396491111,1765000237258,-500.0,0.00017999,2]
[396491112,1765000237268,-565.41204608,0.00017999,2]
[396491113,1765000237278,-500.0,0.00017999,2]
[396491114,1765000237290,-500.0,0.00017999,2]
[396491115,1765000237302,-500.0,0.00017999,2]
[396491116,1765000237312,-500.0,0.00017999,2]
[396491117,1765000237321,-500.0,0.00017999,2]
[396491118,1765000237331,-417.18067544,0.00017999,2]
[396491119,1765000237342,-1000.0,0.00017999,2]
[396491120,1765000237351,-150.0,0.00018,2]
[396491121,1765000237360,-159.95799,0.00018,2]
[396491122,1765000237369,-155.7271854,0.00018,2]
[396491123,1765000237378,-262.63843617,0.00018,2]
[396491124,1765000237387,-150.0,0.00018,2]
[396491125,1765000237396,-156.63475693,0.00018,2]
[396491126,1765000237405,-157.16718267,0.00018,2]
[396491127,1765000237414,-150.0,0.00018,2]
[396491128,1765000237423,-150.0,0.00018,2]
[396491129,1765000237432,-57352.45055894,0.00018,2]
[396491130,1765000237443,-99902.05373188,0.00018,2]
[396491131,1765000237456,-96966.18281525,0.00018,2]
[396491132,1765000237466,-820.7253007,0.00018,2]
[396491133,1765000237478,-1702.31561347,0.00018,2]
[396491134,1765000237489,-2381.51269091,0.00018,2]
[396491135,1765000237569,-371.3259998,0.00018,2]
[396491136,1765000237580,-705.05,0.00018,2]
[396491217,1765000239876,-4707.0,0.00017519,2]
[396491218,1765000239886,-7425.52377349,0.00018,2]
[396491219,1765000240422,-500.0,0.00018,2]
[396491220,1765000240433,-3783518.57940777,0.00018,2]
[396491221,1765000240444,-1522.64576865,0.00018,2]
[396491223,1765000240455,-1088.94000001,0.00018,2]
[396491229,1765000242803,-632.0,0.00015877,2]
[396491230,1765000242813,-166.17416124,0.000169,2]
[396491231,1765000242823,-564.551,0.00017519,2]
[396491232,1765000242832,-22852.95723877,0.00018,2]
[396491233,1765000242857,-461.23596496,0.00018,2]
[396491242,1765000245753,-1888.0,0.00015908,2]
[396491243,1765000245766,-116.92417743,0.0001594,2]
[396491244,1765000245813,-367.07582257,0.0001594,2]
[396491245,1765000245822,-891.0,0.00015972,2]
[396491246,1765000245841,-546.07129873,0.00018,2]
[396491290,1765000275135,836.72,8.815e-05,2]
[396491291,1765000275196,836.72,9.279e-05,2]
[396491292,1765000275273,836.72,9.743e-05,2]
[396491293,1765000275359,836.72,0.00010207,2]
[396491294,1765000275511,836.72,0.00010671,2]
[396491295,1765000275709,836.72,0.00011134,2]
[396491297,1765000275905,836.72,0.00011598,2]
[396491298,1765000276115,836.72,0.00012062,2]
[396491299,1765000276296,836.72,0.00012526,2]
[396491300,1765000276486,836.72,0.0001299,2]
[396491301,1765000276688,836.72,0.00013454,2]
[396491302,1765000276889,796.09,0.00013918,2]
[396491303,1765000276916,40.63,0.00013918,2]
[396491304,1765000277082,836.72,0.00014382,2]
[396491305,1765000277283,836.72,0.00014846,2]
[396491358,1765000481730,-231.51766019,0.0001531,2]
[396491359,1765000484515,-256.0,0.0001531,2]
[396491361,1765000495009,-349.20233981,0.0001531,2]
[396491367,1765000511945,-175.67817167,0.00015667,2]
[396491369,1765000517529,-339.49167115,0.00034849,120]
[396491370,1765000517576,-593.15068916,0.00037978,30]
[396491371,1765000517614,-300.0,0.00037978,30]
[396491372,1765000517654,-300.0,0.00037978,30]
[396491373,1765000517694,-532.3116,0.00038888,30]
[396491374,1765000517737,-153.0,0.00039452,120]
[396491375,1765000517776,-153.0,0.00039452,120]
[396491376,1765000517814,-153.0,0.00039452,120]
[396491377,1765000517851,-153.0,0.00039452,120]
[396491378,1765000517890,-153.0,0.00039452,120]
[396491379,1765000517930,-153.0,0.00039452,120]
[396491380,1765000517968,-153.0,0.00039452,120]
[396491381,1765000518005,-153.0,0.00039452,120]
[396491382,1765000518042,-153.0,0.00039452,120]
[396491383,1765000518081,-153.0,0.00039452,120]
[396491384,1765000518120,-153.0,0.00039452,120]
[396491385,1765000518158,-153.0,0.00039452,120]
[396491386,1765000518198,-153.0,0.00039452,120]
[396491387,1765000518236,-153.0,0.00039452,120]
[396491388,1765000518274,-153.0,0.00039452,120]
[396491389,1765000518312,-153.0,0.00039452,120]
[396491390,1765000518351,-153.0,0.00039452,120]
[396491391,1765000518389,-153.0,0.00039452,120]
[396491392,1765000518427,-153.0,0.00039452,120]
[396491393,1765000518465,-153.0,0.00039452,120]
[396491394,1765000518502,-153.0,0.00039452,120]
[396491395,1765000518544,-153.0,0.00039452,120]
[396491396,1765000518582,-153.0,0.00039452,120]
[396491397,1765000518620,-153.0,0.00039452,120]
[396491398,1765000518660,-153.0,0.00039452,120]
[396491399,1765000518700,-153.0,0.00039452,120]
[396491400,1765000518741,-153.0,0.00039452,120]
[396491401,1765000518784,-153.0,0.00039452,120]
[396491402,1765000518825,-153.0,0.00039452,120]
[396491403,1765000518866,-153.0,0.00039452,120]
[396491404,1765000518908,-153.0,0.00039452,120]
[396491405,1765000518947,-153.0,0.00039452,120]
[396491406,1765000518987,-153.0,0.00039452,120]
[396491407,1765000519025,-153.0,0.00039452,120]
[396491408,1765000519064,-153.0,0.00039452,120]
[396491409,1765000519104,-153.0,0.00039452,120]
[396491410,1765000519147,-153.0,0.00039452,120]
[396491411,1765000519187,-153.0,0.00039452,120]
[396491412,1765000519226,-153.0,0.00039452,120]
[396491413,1765000519265,-153.0,0.00039452,120]
[396491415,1765000519305,-153.0,0.00039452,120]
[396491416,1765000519347,-153.0,0.00039452,120]
[396491417,1765000519387,-153.0,0.00039452,120]
[396491418,1765000519430,-153.0,0.00039452,120]
[396491419,1765000519471,-153.0,0.00039452,120]
[396491420,1765000519791,-153.0,0.00039452,120]
[396491421,1765000519891,-153.0,0.00039452,120]
[396491422,1765000519932,-153.0,0.00039452,120]
[396491423,1765000519973,-153.0,0.00039452,120]
[396491424,1765000520014,-153.0,0.00039452,120]
[396491425,1765000520054,-153.0,0.00039452,120]
[396491426,1765000520099,-153.0,0.00039452,120]
[396491427,1765000520140,-153.0,0.00039452,120]
[396491428,1765000520181,-153.0,0.00039452,120]
[396491429,1765000520221,-153.0,0.00039452,120]
[396491430,1765000520261,-153.0,0.00039452,120]
[396491431,1765000520301,-153.0,0.00039452,120]
[396491432,1765000520342,-153.0,0.00039452,120]
[396491433,1765000520387,-153.0,0.00039452,120]
[396491434,1765000520425,-153.0,0.00039452,120]
[396491435,1765000520477,-153.0,0.00039452,120]
[396491436,1765000520518,-153.0,0.00039452,120]
[396491437,1765000520559,-153.0,0.00039452,120]
[396491438,1765000520600,-153.0,0.00039452,120]
[396491439,1765000520641,-153.0,0.00039452,120]
[396491440,1765000520683,-153.0,0.00039452,120]
[396491441,1765000520725,-153.0,0.00039452,120]
[396491442,1765000520764,-153.0,0.00039452,120]
[396491443,1765000520804,-153.0,0.00039452,120]
[396491444,1765000520843,-153.0,0.00039452,120]
[396491445,1765000520882,-153.0,0.00039452,120]
[396491446,1765000520921,-153.0,0.00039452,120]
[396491447,1765000520961,-153.0,0.00039452,120]
[396491448,1765000521000,-153.0,0.00039452,120]
[396491449,1765000521039,-153.0,0.00039452,120]
[396491450,1765000521079,-153.0,0.00039452,120]
[396491451,1765000521126,-153.0,0.00039452,120]
[396491452,1765000521168,-153.0,0.00039452,120]
[396491453,1765000521213,-153.0,0.00039452,120]
[396491454,1765000521255,-153.0,0.00039452,120]
[396491455,1765000521298,-153.0,0.00039452,120]
[396491456,1765000521343,-709.26,0.000396,30]
[396491457,1765000521389,-1004.626,0.0004073,59]
[396491458,1765000521433,-300.061351,0.00040886,103]
[396491459,1765000521482,-4184.2,0.00041,30]
[396491460,1765000521522,-475.0,0.00041223,30]
[396491461,1765000521563,-200.0,0.00041416,120]
[396491462,1765000521603,-1254.45,0.00041481,30]
[396491463,1765000521644,-475.0,0.00041497,30]
[396491464,1765000521686,-475.0,0.00041771,30]
[396491465,1765000521727,-475.0,0.00042045,30]
[396491466,1765000521881,-475.0,0.00042319,30]
[396491467,1765000521925,-475.0,0.00042593,30]
[396491468,1765000521967,-1097.0,0.00042697,30]
[396491469,1765000522010,-475.0,0.00042867,30]
[396491470,1765000522054,-475.0,0.00043141,30]
[396491471,1765000522097,-475.0,0.00043415,30]
[396491472,1765000522140,-475.0,0.00043688,30]
[396491473,1765000522182,-475.0,0.00043962,30]
[396491474,1765000522225,-150.0,0.00044,57]
[396491475,1765000522271,-475.0,0.0004451,30]
[396491476,1765000522315,-217.1,0.0004467,120]
[396491477,1765000522359,-1097.0,0.00044944,30]
[396491479,1765000522400,-4184.2,0.00045,30]
[396491480,1765000522440,-420.0,0.00045,120]
[396491481,1765000522480,-475.0,0.00045058,30]
[396491482,1765000522520,-1344.5,0.0004543,120]
[396491483,1765000522559,-273407.7234,0.00045444,30]
[396491484,1765000522599,-475.0,0.00045606,30]
[396491485,1765000522643,-500.0,0.00046,120]
[396491486,1765000522685,-475.0,0.00046154,30]
[396491487,1765000522725,-1344.5,0.0004619,120]
[396491488,1765000522765,-500.0,0.00046575,31]
[396491489,1765000522806,-1000.0,0.00046575,30]
[396491490,1765000522846,-475.0,0.00046702,30]
[396491491,1765000522888,-1344.5,0.0004695,120]
[396491492,1765000522929,-161.28279969,0.00047132,30]
[396491493,1765000522969,-193.64491059,0.00047132,30]
[396491494,1765000523011,-475.0,0.0004725,30]
[396491495,1765000523052,-1097.0,0.0004731,30]
[396491496,1765000523093,-500.0,0.00047402,120]
[396491497,1765000523134,-557.5788265,0.00047499,48]
[396491498,1765000523173,-151.0,0.00047499,48]
[396491499,1765000523215,-475.0,0.00047798,30]
[396491500,1765000523255,-700.0,0.00048,120]
[396491501,1765000523307,-500.0,0.00048156,60]
[396491502,1765000523354,-900.0,0.00048156,60]
[396491503,1765000523400,-475.0,0.00048346,30]
[396491504,1765000523445,-900.0,0.00048704,60]
[396491505,1765000523486,-500.0,0.00048803,120]
[396491506,1765000523529,-909.41193908,0.00048808,120]
[396491507,1765000523571,-475.0,0.00048894,30]
[396491508,1765000523615,-4184.2,0.00049,30]
[396491509,1765000523661,-500.0,0.00049252,60]
[396491510,1765000523705,-900.0,0.00049252,60]
[396491511,1765000523748,-221.87116041,0.00049314,60]
[396491512,1765000523791,-537.6845,0.00049314,60]
[396491513,1765000523833,-151.0,0.00049314,60]
[396491514,1765000523876,-535.09011814,0.00049408,30]
[396491515,1765000523919,-475.0,0.00049442,30]
[396491516,1765000523961,-399547.0052,0.00049444,30]
[396491517,1765000524003,-1550.43,0.0004955,120]
[396491518,1765000524046,-678.88,0.0004955,120]
[396491519,1765000524089,-224.8416077,0.0004955,120]
[396491520,1765000524414,-681.33,0.0004955,120]
[396491521,1765000524456,-1592.44,0.0004955,120]
[396491522,1765000524497,-246.38,0.0004955,120]
[396491523,1765000524537,-1580.11,0.0004955,120]
[396491524,1765000524580,-675.61,0.0004955,120]
[396491525,1765000524621,-671.63,0.0004955,120]
[396491526,1765000524662,-1545.52,0.0004955,120]
[396491527,1765000524703,-244.89,0.0004955,120]
[396491528,1765000524743,-1598.35,0.0004955,120]
[396491529,1765000524782,-667.66,0.0004955,120]
[396491530,1765000524823,-668.64,0.0004955,120]
[396491531,1765000524863,-1029.30288704,0.0004955,120]
[396491532,1765000524904,-312.20750922,0.0004955,120]
[396491534,1765000524945,-322.08863683,0.0004955,120]
[396491535,1765000524985,-170.09623716,0.0004955,120]
[396491536,1765000525027,-1000.0,0.00049695,30]
[396491537,1765000525068,-375293.24163659,0.000497,120]
[396491538,1765000525110,-150.0,0.000497,39]
[396491539,1765000525150,-157.9,0.000497,120]
[396491540,1765000525191,-234.0,0.000497,56]
[396491541,1765000525230,-151.8603603,0.00049744,30]
[396491542,1765000525268,-500.0,0.00049799,30]
[396491543,1765000525308,-500.0,0.00049799,30]
[396491544,1765000525347,-500.0,0.00049799,30]
[396491545,1765000525386,-458.17832554,0.00049799,30]
[396491546,1765000525425,-150.0,0.00049799,30]
[396491547,1765000525464,-203.7450711,0.00049799,30]
[396491548,1765000525502,-155.97160644,0.00049799,30]
[396491549,1765000525543,-500.0,0.00049799,30]
[396491550,1765000525584,-500.0,0.00049799,30]
[396491551,1765000525625,-455.38519579,0.00049799,30]
[396491552,1765000525667,-500.0,0.00049799,30]
[396491553,1765000525708,-559.49182125,0.00049799,30]
[396491554,1765000525749,-576.0,0.00049799,30]
[396491555,1765000525790,-576.0,0.00049799,30]
[396491556,1765000525832,-576.0,0.00049799,30]
[396491557,1765000525876,-576.0,0.00049799,30]
[396491558,1765000525920,-576.0,0.00049799,30]
[396491559,1765000525965,-576.0,0.00049799,30]
[396491560,1765000526009,-576.0,0.00049799,30]
[396491561,1765000526055,-576.0,0.00049799,30]
[396491562,1765000526099,-576.0,0.00049799,30]
[396491563,1765000526143,-576.0,0.00049799,30]
[396491564,1765000526186,-576.0,0.00049799,30]
[396491565,1765000526229,-576.0,0.00049799,30]
[396491566,1765000526272,-576.0,0.00049799,30]
[396491567,1765000526313,-576.0,0.00049799,30]
[396491568,1765000526353,-576.0,0.00049799,30]
[396491569,1765000526393,-576.0,0.00049799,30]
[396491570,1765000526434,-576.0,0.00049799,30]
[396491571,1765000526472,-576.0,0.00049799,30]
[396491572,1765000526509,-576.0,0.00049799,30]
[396491573,1765000526547,-576.0,0.00049799,30]
[396491574,1765000526586,-576.0,0.00049799,30]
[396491575,1765000526626,-576.0,0.00049799,30]
[396491576,1765000526668,-576.0,0.00049799,30]
[396491577,1765000526705,-592.09647585,0.00049799,30]
[396491578,1765000526743,-500.0,0.00049799,30]
[396491579,1765000526782,-500.0,0.00049799,30]
[396491580,1765000526822,-500.0,0.00049799,30]
[396491581,1765000526861,-311.27937917,0.00049799,30]
[396491582,1765000526901,-500.0,0.00049799,30]
[396491583,1765000526940,-500.0,0.00049799,30]
[396491584,1765000526980,-500.0,0.00049799,30]
[396491585,1765000527020,-500.0,0.00049799,30]
[396491586,1765000527060,-500.0,0.00049799,30]
[396491587,1765000527102,-500.0,0.00049799,30]
[396491588,1765000527144,-500.0,0.00049799,30]
[396491589,1765000527187,-500.0,0.00049799,30]
[396491590,1765000527228,-500.0,0.00049799,30]
[396491591,1765000527270,-500.0,0.00049799,30]
[396491592,1765000527312,-500.0,0.00049799,30]
[396491593,1765000527354,-500.0,0.00049799,30]
[396491594,1765000527400,-500.0,0.00049799,30]
[396491595,1765000527445,-500.0,0.00049799,30]
[396491596,1765000527488,-254.38955024,0.00049799,30]
[396491597,1765000527532,-500.0,0.00049799,30]
[396491598,1765000527575,-500.0,0.00049799,30]
[396491599,1765000527616,-500.0,0.00049799,30]
[396491600,1765000527657,-500.0,0.00049799,30]
[396491601,1765000527700,-500.0,0.00049799,30]
[396491602,1765000527744,-500.0,0.00049799,30]
[396491603,1765000527787,-500.0,0.00049799,30]
[396491604,1765000527828,-500.0,0.00049799,30]
[396491605,1765000527878,-500.0,0.00049799,30]
[396491606,1765000527921,-500.0,0.00049799,30]
[396491607,1765000527962,-500.0,0.00049799,30]
[396491608,1765000528004,-600.12643183,0.00049799,30]
[396491609,1765000528045,-150.0,0.00049799,30]
[396491610,1765000528087,-150.0,0.00049799,30]
[396491611,1765000528128,-204.42751338,0.00049799,30]
[396491612,1765000528170,-1000.0,0.00049799,30]
[396491613,1765000528213,-1000.0,0.00049799,30]
[396491614,1765000528254,-1000.0,0.00049799,30]
[396491615,1765000528295,-1000.0,0.00049799,30]
[396491616,1765000528339,-1000.0,0.00049799,30]
[396491617,1765000528380,-1000.0,0.00049799,30]
[396491618,1765000528422,-1000.0,0.00049799,30]
[396491619,1765000528462,-1000.0,0.00049799,30]
[396491620,1765000528503,-1000.0,0.00049799,30]
[396491621,1765000528543,-1000.0,0.00049799,30]
[396491622,1765000528582,-1000.0,0.00049799,30]
[396491623,1765000528622,-1000.0,0.00049799,30]
[396491624,1765000528664,-1000.0,0.00049799,30]
[396491625,1765000528907,-1000.0,0.00049799,30]
[396491626,1765000528949,-1000.0,0.00049799,30]
[396491627,1765000528990,-958.83280829,0.00049799,30]
[396491628,1765000529031,-1000.0,0.00049799,30]
[396491629,1765000529070,-1000.0,0.00049799,30]
[396491630,1765000529110,-1000.0,0.00049799,30]
[396491631,1765000529151,-1000.0,0.00049799,30]
[396491632,1765000529191,-1000.0,0.00049799,30]
[396491633,1765000529231,-1000.0,0.00049799,30]
[396491634,1765000529271,-1000.0,0.00049799,30]
[396491635,1765000529313,-1000.0,0.00049799,30]
[396491636,1765000529356,-1000.0,0.00049799,30]
[396491637,1765000529397,-1000.0,0.00049799,30]
[396491638,1765000529439,-1000.0,0.00049799,30]
[396491639,1765000529479,-1000.0,0.00049799,30]
[396491640,1765000529522,-1000.0,0.00049799,30]
[396491641,1765000529564,-1000.0,0.00049799,30]
[396491642,1765000529606,-1000.0,0.00049799,30]
[396491643,1765000529648,-1000.0,0.00049799,30]
[396491644,1765000529690,-1000.0,0.00049799,30]
[396491645,1765000529730,-1000.0,0.00049799,30]
[396491646,1765000529771,-1000.0,0.00049799,30]
[396491647,1765000529811,-1000.0,0.00049799,30]
[396491648,1765000529853,-1000.0,0.00049799,30]
[396491649,1765000529895,-1000.0,0.00049799,30]
[396491650,1765000529938,-1000.0,0.00049799,30]
[396491651,1765000529980,-1000.0,0.00049799,30]
[396491652,1765000530022,-1000.0,0.00049799,30]
[396491653,1765000530064,-1000.0,0.00049799,30]
[396491654,1765000530106,-1000.0,0.00049799,30]
[396491655,1765000530148,-1000.0,0.00049799,30]
[396491656,1765000530190,-151.17618816,0.00049799,30]
[396491657,1765000530232,-500.0,0.00049799,30]
[396491658,1765000530274,-500.0,0.00049799,30]
[396491659,1765000530315,-252.92462601,0.00049799,30]
[396491660,1765000530357,-150.0,0.00049799,30]
[396491661,1765000530399,-150.0,0.00049799,30]
[396491662,1765000530439,-150.0,0.00049799,30]
[396491663,1765000530479,-214.74278268,0.00049799,30]
[396491664,1765000530520,-152.66175685,0.00049799,30]
[396491665,1765000530561,-150.0,0.00049799,30]
[396491666,1765000530602,-150.0,0.00049799,30]
[396491667,1765000530645,-202.34543075,0.00049799,30]
[396491668,1765000530687,-202.60109989,0.00049799,30]
[396491669,1765000530730,-150.0,0.00049799,30]
[396491670,1765000530773,-150.0,0.00049799,30]
[396491671,1765000530814,-150.0,0.00049799,30]
[396491672,1765000530855,-211.31304468,0.00049799,30]
[396491673,1765000530894,-200.0,0.00049799,30]
[396491674,1765000530933,-150.0,0.00049799,30]
[396491675,1765000530972,-152.5230878,0.00049799,30]
[396491676,1765000531011,-150.0,0.00049799,30]
[396491677,1765000531049,-157.21624821,0.00049799,30]
[396491678,1765000531087,-150.0,0.00049799,30]
[396491679,1765000531126,-150.0,0.00049799,30]
[396491680,1765000531165,-150.0,0.00049799,30]
[396491681,1765000531203,-205.65423848,0.00049799,30]
[396491682,1765000531242,-911.0,0.00049799,30]
[396491683,1765000531279,-911.0,0.00049799,30]
[396491684,1765000531318,-911.0,0.00049799,30]
[396491685,1765000531356,-911.0,0.00049799,30]
[396491686,1765000531395,-911.0,0.00049799,30]
[396491687,1765000531435,-911.0,0.00049799,30]
[396491688,1765000531473,-911.0,0.00049799,30]
[396491689,1765000531512,-911.0,0.00049799,30]
[396491690,1765000531551,-911.0,0.00049799,30]
[396491691,1765000531592,-911.0,0.00049799,30]
[396491692,1765000531635,-911.0,0.00049799,30]
[396491693,1765000531676,-911.0,0.00049799,30]
[396491694,1765000531716,-911.0,0.00049799,30]
[396491695,1765000531754,-911.0,0.00049799,30]
[396491696,1765000531793,-911.0,0.00049799,30]
[396491697,1765000531833,-911.0,0.00049799,30]
[396491698,1765000531872,-911.0,0.00049799,30]
[396491699,1765000531914,-911.0,0.00049799,30]
[396491700,1765000531956,-911.0,0.00049799,30]
[396491701,1765000531996,-911.0,0.00049799,30]
[396491702,1765000532036,-911.0,0.00049799,30]
[396491703,1765000532075,-911.0,0.00049799,30]
[396491704,1765000532114,-911.0,0.00049799,30]
[396491705,1765000532154,-916.19072623,0.00049799,30]
[396491706,1765000532197,-152.59077503,0.00049799,30]
[396491707,1765000532238,-500.0,0.00049799,30]
[396491708,1765000532277,-500.0,0.00049799,30]
[396491709,1765000532318,-500.0,0.00049799,30]
[396491710,1765000532358,-500.0,0.00049799,30]
[396491711,1765000532398,-500.0,0.00049799,30]
[396491712,1765000532438,-501.88899101,0.00049799,30]
[396491713,1765000532479,-1128.0,0.00049799,30]
[396491714,1765000532518,-1128.0,0.00049799,30]
[396491715,1765000532558,-1128.0,0.00049799,30]
[396491716,1765000532598,-1128.0,0.00049799,30]
[396491717,1765000532643,-1128.0,0.00049799,30]
[396491718,1765000532683,-1128.0,0.00049799,30]
[396491719,1765000532722,-1128.0,0.00049799,30]
[396491720,1765000532761,-1128.0,0.00049799,30]
[396491721,1765000532799,-1128.0,0.00049799,30]
[396491722,1765000532837,-1128.0,0.00049799,30]
[396491723,1765000532877,-1128.0,0.00049799,30]
[396491724,1765000532916,-1128.0,0.00049799,30]
[396491725,1765000532954,-1128.0,0.00049799,30]
[396491726,1765000532993,-1128.0,0.00049799,30]
[396491727,1765000533033,-1128.0,0.00049799,30]
[396491728,1765000533272,-1128.0,0.00049799,30]
[396491729,1765000533314,-1128.0,0.00049799,30]
[396491730,1765000533358,-1128.0,0.00049799,30]
[396491731,1765000533403,-1128.0,0.00049799,30]
[396491732,1765000533447,-1128.0,0.00049799,30]
[396491733,1765000533490,-1128.0,0.00049799,30]
[396491734,1765000533531,-1128.0,0.00049799,30]
[396491735,1765000533570,-1128.0,0.00049799,30]
[396491736,1765000533615,-1132.29039722,0.00049799,30]
[396491737,1765000533656,-786.0,0.00049799,30]
[396491738,1765000533697,-786.0,0.00049799,30]
[396491739,1765000533737,-786.0,0.00049799,30]
[396491740,1765000533777,-786.0,0.00049799,30]
[396491741,1765000533817,-786.0,0.00049799,30]
[396491742,1765000533857,-786.0,0.00049799,30]
[396491743,1765000533896,-786.0,0.00049799,30]
[396491744,1765000533936,-786.0,0.00049799,30]
[396491745,1765000533979,-786.0,0.00049799,30]